Cogmind - Beta 13 @@@ ROGUE MODE // 2024.05.31 @ 21:01:45 Player: CONM Result: Destroyed by G-47 Trooper with Particle Gun Performance ------------- Evolutions (2) 1000 Regions Visited (4) 800 Robots Destroyed (32) 160 Value Destroyed (1029) 1029 Prototype IDs (12) 240 Alien Tech Used (0) 0 Bonus (0) 0 TOTAL SCORE: 3229 Bonus ------- None Cogmind --------- Core Integrity 0/550 Matter 280/300 Energy 134/250 System Corruption 0% Temperature Hot (236) Movement Treading (160) Location -8/Materials Parts ------- > --- POWER (1) -------- Ion Engine > --- PROPULSION (4) --- Light Treads Light Treads Light Treads Wheel > --- UTILITY (4) ------ Medium Storage Unit Core Shielding > --- WEAPON (2) ------- Advanced Beam Rifle Advanced Beam Rifle > --- INVENTORY (10) --- Improved Terrain Scanner Terrain Scan Processor Peak State ------------ > --- POWER ------------ Light Nuclear Core > --- PROPULSION ------- (None) > --- UTILITY ---------- Improved Heat Sink Small Storage Unit Subdweller Optics Splice Drone Bay > --- WEAPON ----------- Powered Cannon > --- INVENTORY -------- Improved Terrain Scanner Terrain Scan Processor Targeting Computer Particle Gun [Rating: 30] Favorites ----------- Power Light Ion Engine Engine Light Ion Engine Power Core Light Nuclear Core Propulsion Aluminum Leg Treads Light Treads Leg Aluminum Leg Wheel Subdweller Monowheel Utility Small Storage Unit Device Subdweller Optics Storage Small Storage Unit Protection Core Shielding Weapon Particle Gun Energy Gun Particle Gun Energy Cannon Powered Cannon Ballistic Gun Light Assault Rifle Slashing Weapon Katana Build | -11 -10 -10 -10 -8 ------- Run | Yrd Mat Min Sub Mat Slots Evolved 4 | . . . . 4 Power . | . . . . . Propulsion 2 | . . . . 2 Utility 2 | . . . . 2 Weapon . | . . . . . Parts Attached 57 | 7 4 10 5 31 Power 9 | 1 . 2 1 5 Engine 6 | 1 . 1 1 3 Core 3 | . . 1 . 2 Reactor . | . . . . . Propulsion 17 | 2 2 4 1 8 Treads 5 | 2 . . . 3 Leg 10 | . 2 4 . 4 Wheel 2 | . . . 1 1 Hover . | . . . . . Flight . | . . . . . Utility 11 | 2 . 1 2 6 Device 8 | 1 . 1 2 4 Storage 2 | 1 . . . 1 Processor . | . . . . . Hackware . | . . . . . Protection 1 | . . . . 1 Artifact . | . . . . . Weapon 20 | 2 2 3 1 12 Energy Gun 16 | . 2 3 1 10 Energy Cannon 1 | . . . . 1 Ballistic Gun 2 | 2 . . . . Ballistic Cannon . | . . . . . Launcher . | . . . . . Special Weapon . | . . . . . Impact Weapon . | . . . . . Slashing Weapon 1 | . . . . 1 Piercing Weapon . | . . . . . Special Melee Weapon . | . . . . . Unidentified Prototypes 2 | . . . 1 1 Parts Lost 27 | . . 4 4 19 Power 6 | . . 1 2 3 Propulsion 7 | . . 1 2 4 Utility 5 | . . . . 5 Weapon 9 | . . 2 . 7 Highest Loss Streak 12 | . . 2 2 12 To Critical Strikes . | . . . . . Average Slot Usage (%) 80 | . 100 93 88 40 Engine 6 | . 14 5 8 1 Core 3 | . . 7 3 2 Treads 1 | . 17 . . 2 Leg 14 | . 10 23 16 4 Wheel 1 | . . . 2 1 Device 12 | . 14 14 14 7 Storage 12 | . 14 14 14 5 Energy Gun 23 | . 26 27 28 7 Naked Turns 2 | . . . . 2 Heaviest Build 31 | 12 15 17 24 31 Greatest Support 40 | 40 40 20 20 40 Greatest Overweight (x) 8 | 3 1 1 5 8 Average Overweight (x) . | . . . . . Largest Inventory Capacity 10 | 8 8 8 8 10 Average Capacity 7 | 7 8 8 8 6 Most Carried 8 | 4 8 8 8 8 Average Carried 6 | 2 6 7 7 3 Final Capacity 10 | 8 8 8 8 10 Final Carried 8 | 4 8 8 8 2 Class Distribution -------------------- 60% | Mutant 39% | Scavenger-Mutant Dominant Class ---------------- Mutant | -10/Materials Scavenger-Mutant | -10/Mines Mutant | -10/Subcaves Mutant | -8/Materials Resources | -11 -10 -10 -10 -8 ----------- Run | Yrd Mat Min Sub Mat Matter Collected 686 | 216 65 150 30 225 Remotely . | . . . . . Salvage Created 1279 | 44 100 218 214 703 Parts 71 | 7 5 10 12 37 Haulers Intercepted 2 | . . . . 2 Recyclers Shooed 1 | . 1 . . . Parts Field Recycled . | . . . . . Retrieved Matter . | . . . . . Parts Self-Destructed 7 | . . . 7 . Prevented . | . . . . . Kills | -11 -10 -10 -10 -8 ------- Run | Yrd Mat Min Sub Mat Combat Hostiles Destroyed 25 | . 2 6 7 10 Guns 22 | . 2 6 7 7 Cannons 3 | . . . . 3 Classes Destroyed 9 | 1 2 . 2 4 Tunneler 3 | 3 . . . . Hauler 2 | . . . . 2 Recycler 1 | . . . . 1 Watcher 1 | . 1 . . . Swarmer 3 | . . . 3 . Grunt 15 | . 2 6 . 7 Duelist 2 | . . . . 2 Sentry 1 | . . . . 1 Subdweller 4 | . . . 4 . Best Kill Streak 4 | 1 2 2 3 4 Combat Bots Only 3 | . 2 2 3 3 Max Kills in Single Turn 2 | 1 1 1 2 1 Gunslinging 1 | . . . 1 . Exploded . | . . . . . Melee . | . . . . . Uniques/NPCs Destroyed . | . . . . . Combat | -11 -10 -10 -10 -8 -------- Run | Yrd Mat Min Sub Mat Hostile Shots Fired 262 | . 20 51 30 161 Missed 60 | . 6 14 9 31 Damage Taken 3244 | . 142 496 360 2246 Core 731 | . 63 93 19 556 Absorbed by Shields . | . . . . . Redirected to Shielding 36 | . . . . 36 Core Remaining (%) 65 | 100 . . 30 . Volleys Fired 118 | 9 11 31 17 50 Largest 2 | 2 2 2 2 2 Hottest 130 | 40 130 130 121 125 Shots Fired 201 | 18 22 62 34 65 Gun 194 | 18 22 62 34 58 Cannon 7 | . . . . 7 Launcher . | . . . . . Special . | . . . . . Kinetic 18 | 18 . . . . Thermal 183 | . 22 62 34 65 Explosive . | . . . . . Electromagnetic . | . . . . . Robot Hit Streak 15 | 5 6 7 10 15 Robot Miss Streak 2 | 2 2 2 2 2 Penetration Max . | . . . . . Secondary Targets 5 | . . . 3 2 Max Gunslinging Chain 1 | . . . 1 1 Shots Hit Robots 144 | 10 13 42 25 54 Core Hits 58 | 5 6 14 11 22 Critical Kills . | . . . . . Critical Parts Destroyed . | . . . . . Critical Strikes 10 | . 1 2 4 3 Burn 10 | . 1 2 4 3 Melee Attacks 4 | . . . . 4 Impact . | . . . . . Slashing 4 | . . . . 4 Piercing . | . . . . . Sneak Attacks 1 | . . . . 1 Combat Hostiles . | . . . . . Follow-up Attacks . | . . . . . Damage Inflicted 2571 | 99 186 642 376 1268 Guns 2091 | 99 186 642 376 788 Cannons 306 | . . . . 306 Explosions . | . . . . . Melee 172 | . . . . 172 Ramming 2 | . . . . 2 Kinetic 99 | 99 . . . . Thermal 2298 | . 186 642 376 1094 Explosive . | . . . . . Electromagnetic . | . . . . . Impact . | . . . . . Slashing 172 | . . . . 172 Piercing . | . . . . . Highest Corruption . | . . . . . Average Corruption . | . . . . . Corruption Purged . | . . . . . Corruption Blocked . | . . . . . Overload Shots . | . . . . . Overflow Damage 5 | . . . . 5 Projectiles 5 | . . . . 5 Explosions . | . . . . . Melee . | . . . . . Knockbacks . | . . . . . Impact . | . . . . . Kinetic . | . . . . . Secondary . | . . . . . Self-Inflicted Damage . | . . . . . Shots . | . . . . . Rammed . | . . . . . Targets Rammed 1 | . . . . 1 Kicked 1 | . . . . 1 Crushed . | . . . . . Highest Temperature 510 | . 510 393 78 227 Average Temperature 123 | . 270 128 34 46 Received Heat Transfer 1614 | . 42 321 54 1197 Effects 13 | . 9 4 . . Shutdowns 3 | . 3 . . . Energy Bleed 1 | . . 1 . . Interference 4 | . 1 3 . . Short Circuit 1 | . 1 . . . Damage (major) 4 | . 4 . . . Siege Activations . | . . . . . Robots Corrupted . | . . . . . Combat Hostiles . | . . . . . Parts Fried . | . . . . . Impact Corruptions . | . . . . . Robots Melted . | . . . . . Combat Hostiles . | . . . . . Parts Melted 11 | . 1 6 2 2 Heat Transferred 5256 | . 555 1702 1185 1814 Parts Sabotaged . | . . . . . Parts Stolen . | . . . . . Parts Stripped . | . . . . . Power Chain Reactions . | . . . . . Alert | -11 -10 -10 -10 -8 ------- Run | Yrd Mat Min Sub Mat Peak Influence 207 | 15 71 207 . 86 Initial 27 | . 9 27 . . Average 71 | 5 30 145 . 50 Maximum Alert Level 1 | . . 1 . . Low Security (%) 95 | 100 100 85 . 100 Level 1 4 | . . 14 . . Level 2 . | . . . . . Level 3 . | . . . . . Level 4 . | . . . . . Level 5 . | . . . . . High Security . | . . . . . Max Security . | . . . . . Squads Dispatched 2 | . . 1 . 1 Investigation 1 | . . 1 . . Extermination . | . . . . . Reinforcement 1 | . . . . 1 Assault . | . . . . . Garrison . | . . . . . Intercept . | . . . . . Searches Triggered . | . . . . . Construction Impeded . | . . . . . Haulers Reinforced . | . . . . . Active Scanning Responses . | . . . . . Cargo Convoy Interrupts . | . . . . . Stealth | -11 -10 -10 -10 -8 --------- Run | Yrd Mat Min Sub Mat Distress Signals 3 | . . . . 3 Communications Jammed . | . . . . . Distress Signals . | . . . . . Times Spotted 40 | . 7 10 7 16 Peak Tracking Total 5 | . 4 3 3 5 Tactical Retreats 4 | . . 3 . 1 Traps | -11 -10 -10 -10 -8 ------- Run | Yrd Mat Min Sub Mat Traps Triggered . | . . . . . Indirectly . | . . . . . Trap Hack Attempts . | . . . . . Triggered . | . . . . . Disarmed . | . . . . . Reprogrammed . | . . . . . Reused . | . . . . . Traps Extracted . | . . . . . Installed . | . . . . . Triggered . | . . . . . Machines | -11 -10 -10 -10 -8 ---------- Run | Yrd Mat Min Sub Mat Machines Disabled 3 | . . 2 1 . Max in Single Turn 1 | . . 1 1 . Machines Repaired . | . . . . . Machines Dismantled . | . . . . . Machines Sabotaged . | . . . . . Overloaded Fab Kills . | . . . . . Hacking | -11 -10 -10 -10 -8 --------- Run | Yrd Mat Min Sub Mat Machines Accessed 4 | . 1 2 1 . Terminals 2 | . 1 1 . . Fabricators . | . . . . . Repair Stations . | . . . . . Recycling Units . | . . . . . Scanalyzers . | . . . . . Garrison Access . | . . . . . Total Hacks 13 | . 1 3 9 . Successful 10 | . . 1 9 . Failed 3 | . 1 2 . . Catastrophic 1 | . . 1 . . Database Lockouts . | . . . . . Manual 3 | . . 2 1 . Terminals 3 | . 1 2 . . Fabricators . | . . . . . Repair Stations . | . . . . . Recycling Units . | . . . . . Scanalyzers . | . . . . . Garrison Access . | . . . . . Terminal Hacks 10 | . . 1 9 . Record 8 | . . . 8 . Open Door 1 | . . 1 . . Derelict Proto ID Bank 1 | . . . 1 . Fabricator Hacks . | . . . . . Repair Station Hacks . | . . . . . Recycling Unit Hacks . | . . . . . Scanalyzer . | . . . . . Garrison Access Hacks . | . . . . . Unauthorized Hacks . | . . . . . Terminals . | . . . . . Fabricators . | . . . . . Repair Stations . | . . . . . Recycling Units . | . . . . . Scanalyzers . | . . . . . Garrison Access . | . . . . . Data Cores Recovered . | . . . . . Used . | . . . . . Hacking Detections 2 | . 1 1 . . Full Trace Events 1 | . . 1 . . Feedback Events . | . . . . . Feedback Blocked . | . . . . . Robot Schematics Acquired . | . . . . . Robots Built . | . . . . . Authchips . | . . . . . Time . | . . . . . Total Robot Build Rating . | . . . . . Part Schematics Acquired . | . . . . . Parts Built . | . . . . . Authchips . | . . . . . Time . | . . . . . Total Part Build Rating . | . . . . . Parts Repaired . | . . . . . Time . | . . . . . Parts Recycled . | . . . . . Recycled Matter . | . . . . . Retrieved Matter . | . . . . . Retrieved Components . | . . . . . Parts Scanalyzed . | . . . . . Part Schematics Acquired . | . . . . . Parts Damaged . | . . . . . Bothacking | -11 -10 -10 -10 -8 ------------ Run | Yrd Mat Min Sub Mat Used RIF Installer . | . . . . . Robots Hacked . | . . . . . Non-combat . | . . . . . Combat . | . . . . . Robot Hacks Applied . | . . . . . Relay Couplers Released . | . . . . . Fabnet Peak Effective % . | . . . . . Robots Rewired . | . . . . . Allies Hacked . | . . . . . Hacks Repelled . | . . . . . Allies | -11 -10 -10 -10 -8 -------- Run | Yrd Mat Min Sub Mat Total Allies . | . . . . . Largest Group . | . . . . . Highest-Rated Group . | . . . . . Highest-Rated Ally . | . . . . . Total Orders 3 | . . . 2 1 EXPLORE 3 | . . . 2 1 Ally Attacks 3 | . . . 2 1 Total Damage . | . . . . . Kills . | . . . . . Allies Corrupted . | . . . . . Allies Melted . | . . . . . Intel | -11 -10 -10 -10 -8 ------- Run | Yrd Mat Min Sub Mat Robot Analysis Total . | . . . . . Derelict Logs Recovered 3 | . . 2 1 . Drone Launches 3 | . . . 2 1 Drone Recoveries 3 | . . . 2 1 Exploration | -11 -10 -10 -10 -8 ------------- Run | Yrd Mat Min Sub Mat Turns Passed 2314 | 240 166 429 1038 441 Spaces Moved 1022 | 127 69 222 471 133 Core 81 | 8 . . 46 27 Treads 181 | 119 44 . . 18 Legs 554 | . 25 222 241 66 Wheels 206 | . . . 184 22 Hover . | . . . . . Flight . | . . . . . Fastest Speed 50 | 50 120 120 110 50 Average Speed 157 | 158 169 138 163 160 Slowest Speed 450 | 200 190 190 300 450 Overloaded Moves . | . . . . . Propulsion Burnouts . | . . . . . Robots Hopped . | . . . . . Cave-ins Triggered . | . . . . . Exploration Rate (%) 28 | 7 16 51 57 10 Regions Visited 4 Branch Regions 2 Pre-discovered Areas 1 | . . . 1 . Known Exits Taken . | . . . . . Unknown Exits Taken 4 | 1 1 1 1 . Scrap Searched . | . . . . . Spaces Dug . | . . . . . Terrain Destroyed 1 | . . . . 1 Melee . | . . . . . Projectile 1 | . . . . 1 AOE . | . . . . . Terrain Rammed . | . . . . . Walls Destroyed . | . . . . . Machines Disabled . | . . . . . Actions | -11 -10 -10 -10 -8 --------- Run | Yrd Mat Min Sub Mat Total 1519 | 146 97 283 708 285 Wait 275 | . . 13 207 55 Move 1018 | 126 68 221 470 133 Hop . | . . . . . Pick Up 24 | 4 8 3 4 5 Fast Attach 31 | 7 2 1 1 20 Attach 16 | . . 4 1 11 Detach 2 | . . . . 2 Swap 10 | . 2 5 3 . Drop 20 | . 6 5 5 4 Fire 118 | 9 11 31 17 50 Melee 4 | . . . . 4 Ram . | . . . . . Kick 1 | . . . . 1 Crush . | . . . . . Escape Stasis . | . . . . . Rewire . | . . . . . Trap . | . . . . . Miscellaneous . | . . . . . Route ------- -11/Scrapyard -10/Materials -10/Mines (discovered 3 exits: *Mat x2 / *Sub) -10/Subcaves (discovered 2 exits: [*Mat x2]) -8/Materials History --------- Turn | Location | Event 11 | -11/Scrapyard | Discovered new exit (range 16) 241 | -11/Scrapyard | Entered Materials 317 | -10/Materials | Build established: Mutant 320 | -10/Materials | Discovered new exit (range 16) 407 | -10/Materials | Entered Mines 456 | -10/Mines | Discovered new exit (range 8) 549 | -10/Mines | Learned Materials stockpile data 605 | -10/Mines | Core integrity fell below 50% 674 | -10/Mines | Found the Drone Emporium 679 | -10/Mines | Found Prototype Device 765 | -10/Mines | Joined a pair of Derelicts in attacking an 0b10 outpost 819 | -10/Mines | Discovered new exit (range 10) 824 | -10/Mines | Identified exit to Materials 836 | -10/Mines | Entered Subcaves 877 | -10/Subcaves | Identified Splice Drone Bay 899 | -10/Subcaves | Shifting Twisted Machinery released Battle Cannon 955 | -10/Subcaves | Build established: Scavenger-Mutant 982 | -10/Subcaves | Discovered new exit (range 62) 1016 | -10/Subcaves | Discovered new exit (range 32) 1174 | -10/Subcaves | Shifting Twisted Machinery released Sub. Laser 1189 | -10/Subcaves | Shifting Twisted Machinery released Sub. Optics 1208 | -10/Subcaves | Learned location of Zion (-6) 1208 | -10/Subcaves | Met a Zionite searching for "candidates" 1348 | -10/Subcaves | Visited 4L-MR0's lab 1626 | -10/Subcaves | Found Powered Cannon 1647 | -10/Subcaves | Build established: Mutant 1874 | -10/Subcaves | Entered Materials 1874 | -8/Materials | Evolved 4 slots: Propulsion x2, Utility x2 1907 | -8/Materials | Attached Powered Cannon, gained temporary slot: Power 2062 | -8/Materials | Lost 6 parts (1p1n2u2w) 2128 | -8/Materials | Core integrity fell below 50% 2151 | -8/Materials | Core integrity fell below 20% 2246 | -8/Materials | Lost 12 parts (2p3n2u5w) 2315 | -8/Materials | Destroyed by G-47 Trooper with Particle Gun Last Messages --------------- 02272_ Acquired Ion Engine. 02273_ K-01 Serf collects debris. 02275_ G-47 Trooper suffers critical hit (Burn). 02277_ K-01 Serf collects debris. 02278_ G-47 Trooper destroyed. 02280_ K-01 Serf collects debris. 02281_ Y-45 Defender suffers critical hit (Burn). 02281_ Heat Sink melted. 02281_ Y-45 Defender destroyed. 02283_ K-01 Serf collects debris. 02284_ Acquired 20 matter. 02286_ K-01 Serf collects debris. 02289_ Acquired Lgt. Treads. 02290_ K-01 Serf collects debris. 02293_ A-02 Transporter destroyed. 02293_ Switching to secondary target: G-47 Trooper. 02294_ Acquired 10 matter. 02296_ K-01 Serf collects debris. 02299_ Acquired Lgt. Treads. 02302_ K-01 Serf collects debris. Map ----- +----------------------------------------------------+ | | | | | | | | | | | | | | | ??????????????????????????????????????????? | | ??????????????????????????????????????????? | | ??????????????????????????????????????????? | | ??????????????????????????????????????????? | | ??????????????????????????????????????????? | | ??????????????????????????????????????????? | | ??????????????????????????????????????????? | | ??????????????????????????????????????????? | | ??????????????????????????##+###??????????? | | ?????????????????????????? ???????????? | | ??????????????????????????? #???????????? | | ?????????????? ?????????? #???????????? | | ???????????? ????#######+##???????????? | | ????????????" ????# [[#???????????? | | ???????????"" ????# """[[#???????????? | | ??????? """"" ????# """""%#???????????? | | ??????? """ ????# """"" #???????????? | | ??????? [ ????# """"[#???????????? | | ???????? #???# @ "%*#???????????? | | ???????? #???# !!=%%/#????#####??? | | ?????!??? #???# ]]k!==#????# #??? | | ???????! ? #???# !gg[]]#????# #??? | | ???????! #???#####/####????#%%/#??? | | ??????? / """ !####### #######%**#??? | | ????# G" =% #??? | | ????# """ %! #??? | | ????# !%%!#??? | | ????# ####### ########+####? | | ????######## #?????## ##???# %%! # | | ???????????# #??????# #????#!%"%%% # | | ???????????# #??????# #????#*"""%" # | | ???????????# #??????# #????# """"" # | | ?????????? #??????# #????# """"" # | | ????????? #??????# #????# """"" # | | ???????? #??????# #????# """"" # | | ???????##+####+##???????# #????# """"" # | | ????????????????????????# #????# # | | ????????????????????????# #????########## | | ????????????????????????+ #?????????????? | | ????????????????????????# #?????????????? | | ????????????????????????# #?????????????? | | ????????????????????????? ??????????????? | | ??????????????????????????????????????????? | +----------------------------------------------------+ Best States ------------- Heat Dissipation 45 Energy Generation 27 Energy Capacity 250 Matter Stores 300 Matter Capacity 300 Sight Range 21 Terrain Scan Density 10 Core Shielding 20 Evasion (%) 55 Recoil Reduction 3 Item Schematics ----------------- None Robot Schematics ------------------ None Fabricated ------------ Nothing Alien Tech Used ----------------- None Achievements -------------- None Challenges ------------ None Game ------ Seed ChipAutogunPod Manual? 0 Play Time 00:32:21 Cumulative 25.1 hours Start 2024.05.30 @ 21:24:13 End 2024.05.31 @ 21:01:45 Sessions 3 Manual Loads 0 Difficulty Rogue Special Mode None Game No. 49 Rogue 49 Adventurer 0 Explorer 0 Win Type - Total 0 Types 0/0/0/0/0/0/0/0/0 Lore% 20 Gallery% 20 Achievement% 23 Wizard Run 0 Options --------- Layout 0 ASCII 0 Keyboard 0 Movement Arrows Keybinds 0 Fullscreen 2 Font 18/Terminus Map View 76x50 Zoom Use 0% Tactical HUD 1 Map Filters NONE Filters NONE Steam 1 RUN: 8ae53f0d-1518-44e3-b3d6-a5732af32bbc